bitfinex/quotes_ETHUSD_20241203
["timestamp","ask_amount","ask_price","bid_price","bid_amount"]
[1733204693311,0.25538719,3658.0,3657.5,0.8174]
[1733204693474,2.03734073,3658.2,3657.5,0.8174]
[1733204693475,0.25538719,3657.9,3657.5,0.8174]
[1733204693680,2.03734073,3658.2,3657.5,0.8174]
[1733204693681,0.25538719,3658.1,3657.5,0.8174]
[1733204693995,0.25538719,3658.0,3657.5,0.8174]
[1733204694312,0.25538719,3658.1,3657.5,0.8174]
[1733204694515,2.03734073,3657.8,3657.5,0.8174]
[1733204694698,2.03734073,3657.8,3657.0,0.7935]
[1733204695010,2.03734073,3657.8,3657.0,1.146303]
[1733204695436,2.03734073,3657.4,3657.0,1.146303]
[1733204695885,2.03734073,3657.4,3657.0,0.7935]
[1733204697681,2.03734073,3657.4,3656.7,0.773]
[1733204698012,2.03734073,3657.4,3657.1,0.10545349]
[1733204698211,2.03734073,3657.4,3656.7,0.773]
[1733204698823,2.03734073,3657.4,3656.8,0.10557863]
[1733204699535,2.13174073,3657.4,3656.7,0.67857863]
[1733204699709,2.64383467,3657.4,3656.9,0.10201762]
[1733204699918,2.64383467,3657.4,3656.7,0.67857863]
[1733204699919,2.64383467,3657.4,3656.8,0.10205934]
[1733204700223,2.03734073,3657.0,3655.6,2.73551]
[1733204700524,2.03734073,3657.0,3656.4,2.73492]
[1733204700829,0.25515386,3657.3,3656.2,0.10239965]
[1733204701131,2.03734073,3657.4,3656.5,2.73478]
[1733204701489,2.03734073,3657.4,3656.6,0.10225419]
[1733204701690,2.03734073,3657.4,3656.7,2.73468]
[1733204701894,2.73381,3657.9,3656.3,2.72583547]
[1733204701895,0.25518408,3657.5,3656.9,2.73448]
[1733204702090,0.25518408,3657.7,3656.9,2.73448]
[1733204702305,0.25518408,3657.6,3657.0,0.10208733]
[1733204702594,2.03734073,3657.4,3657.0,0.85608733]
[1733204703001,2.3354748,3657.4,3657.0,0.10208733]
[1733204703205,0.25518408,3657.3,3657.0,0.10208733]
[1733204703501,0.25518408,3657.2,3656.4,3.51849]
[1733204703724,0.25518408,3657.3,3657.1,0.10204562]
[1733204703928,0.25518408,3657.3,3656.5,2.73479]
[1733204704305,0.25518408,3657.3,3656.6,2.83702419]
[1733204704504,2.03734073,3657.4,3656.7,0.8152]
[1733204704812,2.03734073,3657.4,3656.7,0.91741247]
[1733204705015,0.25534271,3657.3,3656.7,0.91741247]
[1733204705440,2.03734073,3657.4,3656.7,0.91741247]
[1733204705636,0.25540918,3657.3,3656.7,0.91741247]
[1733204706204,0.25540918,3657.3,3656.8,2.73456]
[1733204706404,2.03734073,3657.8,3657.1,0.8107]
[1733204706606,0.25545112,3657.7,3657.1,3.54506]
[1733204706841,0.25544613,3657.6,3657.2,0.10206392]
[1733204707077,0.25544613,3657.5,3657.2,0.10206392]
[1733204707381,2.03734073,3657.8,3657.2,0.10206392]
[1733204707382,0.25547134,3657.7,3657.2,0.10206392]
[1733204707541,0.25547287,3657.6,3657.2,0.10206392]
[1733204707739,0.25547287,3657.5,3657.2,0.10206392]
[1733204708072,0.25547287,3657.7,3657.2,0.10206392]
[1733204708242,2.03734073,3657.8,3657.2,0.10206392]
[1733204708243,0.25547287,3657.6,3657.2,0.10206392]
[1733204708443,2.03734073,3657.8,3657.2,0.10206392]
[1733204708644,0.25551104,3657.7,3657.2,0.10206392]
[1733204708976,0.25551104,3657.6,3657.2,0.10206392]
[1733204709137,2.03734073,3657.8,3657.2,0.10206392]
[1733204709336,0.2555531,3657.7,3657.2,0.10206392]
[1733204709652,0.2555531,3657.6,3657.2,0.10206392]
[1733204709866,2.03734073,3657.8,3657.2,0.10206392]
[1733204710034,0.25555525,3657.7,3657.2,0.10206392]
[1733204710236,0.25555525,3657.6,3657.2,0.10206392]
[1733204710678,2.03734073,3657.8,3657.2,0.10206392]
[1733204710852,0.25561274,3657.7,3657.2,0.10206392]
[1733204711054,0.25561274,3657.6,3657.2,0.10206392]
[1733204711375,0.25561274,3657.5,3657.2,0.10206392]
[1733204711583,2.03734073,3657.8,3657.2,0.10206392]
[1733204711872,0.25569311,3657.7,3657.2,0.10206392]
[1733204712173,0.25569311,3657.6,3657.2,2.83636392]
[1733204712475,0.25569311,3657.5,3657.2,2.83636392]
[1733204712679,2.03734073,3657.8,3657.2,2.83636392]
[1733204712984,0.25578468,3657.7,3657.2,2.83636392]
[1733204713182,0.40871381,3657.9,3657.7,0.7643]
[1733204713473,0.40871381,3658.3,3657.7,0.7643]
[1733204713779,0.25584201,3658.2,3657.8,0.10166375]
[1733204713947,0.25584201,3658.1,3657.7,0.7643]
[1733204714149,0.25584201,3658.0,3657.7,0.7643]
[1733204714392,0.40871381,3658.2,3657.9,0.10141213]
[1733204714581,0.25582845,3658.1,3657.7,0.7643]
[1733204714782,0.22931692,3658.1,3658.0,0.10137044]
[1733204715030,0.8938595,3658.1,3657.2,3.0]
[1733204715199,2.03734073,3657.8,3656.9,0.8227]
[1733204715401,0.25582877,3657.7,3657.3,0.10164517]
[1733204715707,0.25582877,3657.6,3657.4,0.10160347]
[1733204715909,0.25582877,3657.5,3656.9,0.8227]
[1733204716106,0.25582877,3657.4,3657.0,0.69226063]
[1733204716425,2.03734073,3657.4,3656.7,0.36522625]
[1733204716719,0.25590829,3657.3,3656.6,0.7792]
[1733204716919,2.03734073,3657.4,3656.6,0.7792]
[1733204717091,0.25591123,3657.3,3656.6,0.7792]
[1733204717298,0.25591123,3657.2,3656.6,0.7792]
[1733204717618,2.03734073,3657.0,3656.6,0.7792]
[1733204717858,0.25597592,3656.9,3656.2,0.8266]
[1733204718127,2.03734073,3657.0,3656.2,0.8266]
[1733204718128,2.03734073,3657.0,3656.2,2.74262331]
[1733204718353,0.25599308,3656.9,3656.2,2.74262331]
[1733204718485,2.03734073,3657.0,3656.2,2.74262331]
[1733204718687,0.25599407,3656.9,3656.2,2.74262331]
[1733204718983,0.25599559,3656.8,3656.1,25.0]
[1733204719183,2.13174073,3657.0,3656.1,25.0]
[1733204719184,0.25599559,3656.7,3656.1,25.0]
[1733204719382,0.25598994,3656.6,3656.1,25.0]
[1733204719583,2.03734073,3656.2,3656.1,25.0]
[1733204719839,2.29336057,3656.2,3656.1,25.0]
[1733204720321,2.03734073,3656.2,3656.1,25.0]
[1733204720527,2.29324572,3656.2,3656.1,25.0]
[1733204720886,2.29324449,3656.2,3656.1,25.0]
[1733204722539,5.54058494,3656.2,3656.1,25.0]
[1733204722712,5.63498494,3656.2,3656.1,25.0]
[1733204723764,6.04443096,3656.2,3656.1,25.0]
[1733204724375,5.63498494,3656.2,3656.1,25.0]
[1733204724575,5.63451497,3656.2,3656.1,25.0]
[1733204724745,6.04320903,3656.2,3656.1,25.0]
[1733204725156,5.63451497,3656.2,3656.1,25.0]
[1733204727472,0.34983379,3656.2,3656.1,25.0]
[1733204727639,2.29277452,3656.5,3656.1,25.0]
[1733204727840,2.03734073,3656.5,3656.1,25.10346177]
[1733204729774,2.03734073,3656.9,3656.2,0.7683]
[1733204730077,2.03734073,3656.9,3656.3,5.46082547]
[1733204730279,2.03734073,3656.9,3656.3,2.72583547]
[1733204730580,2.03734073,3656.9,3656.4,0.10306638]
[1733204731605,2.03734073,3656.9,3656.2,3.7683]
[1733204731912,2.03734073,3656.9,3656.5,0.10298177]
[1733204732211,0.0944,3656.8,3656.3,0.10306522]
[1733204732509,2.03734073,3656.4,3656.1,25.0]
[1733204740933,2.03734073,3656.8,3656.1,25.0]
[1733204741691,2.29250298,3656.8,3656.1,25.0]
[1733204742586,3.00690918,3656.8,3656.1,25.0]
[1733204742793,0.25529673,3656.7,3656.2,0.09981042]
[1733204743023,2.13174073,3656.4,3656.2,0.09981042]
[1733204743936,2.735,3656.3,3656.2,0.09981042]
[1733204744229,0.25542445,3656.3,3656.2,0.09981042]
[1733204744528,0.80849084,3656.3,3656.2,0.09981042]
[1733204745092,3.54349084,3656.3,3656.2,0.09981042]
[1733204745298,3.54349084,3656.3,3656.1,25.0]
[1733204745299,2.73508,3656.2,3656.1,25.0]
[1733204745608,2.99050445,3656.2,3656.1,25.10013031]
[1733204747526,3.39917316,3656.2,3656.1,25.10013031]
[1733204748036,2.99050445,3656.2,3656.1,25.10013031]
[1733204748241,3.39917316,3656.2,3656.1,25.10013031]
[1733204748753,2.99050445,3656.2,3656.1,25.10013031]
[1733204748930,3.39917316,3656.2,3656.1,25.10013031]
[1733204749095,4.39560899,3656.2,3656.1,25.10013031]
[1733204749700,4.39560899,3656.2,3656.1,25.0]
[1733204750100,4.39560899,3656.2,3656.1,25.1005197]
[1733204752201,4.49000899,3656.2,3656.1,25.1005197]
[1733204756657,4.49000899,3656.2,3656.1,23.0779207]
[1733204757311,5.43542467,3656.2,3656.1,23.0779207]
[1733204757507,7.99903236,3656.2,3656.1,23.0779207]
[1733204757753,8.42425102,3656.2,3656.1,22.977401]
[1733204758107,8.42425102,3656.2,3656.1,23.07815186]
[1733204758720,8.59535248,3656.2,3656.1,23.07815186]
[1733204759313,7.99903236,3656.2,3656.1,23.07815186]
[1733204759652,6.85355437,3656.2,3656.1,23.07815186]
[1733204760014,7.99743365,3656.2,3656.1,23.07815186]
[1733204760215,8.16853511,3656.2,3656.1,23.07815186]
[1733204760415,6.85355437,3656.2,3656.1,23.07815186]
[1733204760714,8.56830931,3656.2,3656.1,23.07815186]
[1733204760920,8.73941077,3656.2,3656.1,23.07815186]
[1733204761427,9.16462943,3656.2,3656.1,23.07815186]
[1733204761757,9.16462943,3656.2,3656.1,22.977401]
[1733204762119,9.34283687,3656.2,3656.1,23.07815186]
[1733204762423,7.44987449,3656.2,3656.1,23.07815186]
[1733204762614,7.27877303,3656.2,3656.1,23.07815186]
[1733204762810,7.44987449,3656.2,3656.1,23.07815186]
[1733204763466,9.73621441,3656.2,3656.1,23.07815186]
[1733204763651,7.27877303,3656.2,3656.1,23.07815186]
[1733204763949,7.44987449,3656.2,3656.1,23.07815186]
[1733204765017,9.73621441,3656.2,3656.1,23.07815186]
[1733204765216,8.47580113,3656.2,3656.1,23.07815186]
[1733204765413,7.45125764,3656.2,3656.1,23.07815186]
[1733204766168,8.74280115,3656.2,3656.1,23.07815186]
[1733204766746,9.16883711,3656.2,3656.1,23.07815186]
[1733204767164,9.34422002,3656.2,3656.1,23.07815186]
[1733204767478,7.45125764,3656.2,3656.1,23.07815186]
[1733204768754,6.18946121,3656.2,3656.1,23.07815186]
[1733204768926,8.92144557,3656.2,3656.1,23.07815186]
[1733204769527,7.02848319,3656.2,3656.1,23.07815186]
[1733204769738,6.85734134,3656.2,3656.1,23.07815186]
[1733204769922,7.02848319,3656.2,3656.1,23.07815186]
[1733204770319,9.06582392,3656.2,3656.1,22.46204174]
[1733204770550,7.65463336,3656.2,3656.1,22.46204174]
[1733204770764,9.94718244,3656.2,3656.1,22.46204174]
[1733204771143,7.80384624,3656.2,3656.1,23.22894174]
[1733204771476,8.94840334,3656.2,3656.1,23.22914722]
[1733204771662,8.94840334,3656.2,3656.1,22.46224722]
[1733204772037,9.11954519,3656.2,3656.1,22.46224722]
[1733204772264,8.94840334,3656.2,3656.1,22.46224722]
[1733204772464,9.12036644,3656.2,3656.1,22.46224722]
[1733204772661,8.94924828,3656.2,3656.1,22.46224722]
[1733204772865,8.94924828,3656.2,3656.1,22.36129088]
[1733204773258,9.37593619,3656.2,3656.1,22.46224722]
[1733204773445,8.23137909,3656.2,3656.1,22.46224722]
[1733204773771,7.97580934,3656.2,3656.1,22.46224722]
[1733204774139,9.69178935,3656.2,3656.1,22.46224722]
[1733204775040,9.6918048,3656.2,3656.1,22.46224722]
[1733204775956,9.69242636,3656.2,3656.1,22.46224722]
[1733204777144,7.97568781,3656.2,3656.1,22.46224722]
[1733204777460,11.64387643,3656.2,3656.1,22.46224722]
[1733204777636,13.93021635,3656.2,3656.1,22.36129088]
[1733204777837,13.93021635,3656.2,3656.1,22.46194755]
[1733204778163,11.64387643,3656.2,3656.1,22.46194755]
[1733204778552,11.73827643,3656.2,3656.1,22.46194755]
[1733204778743,14.59952419,3656.2,3656.1,22.46194755]
[1733204779583,14.60246558,3656.2,3656.1,22.46194755]
[1733204779736,14.60246558,3656.2,3656.1,22.36129088]
[1733204780071,14.60246558,3656.2,3656.1,22.46194755]
[1733204780868,11.73960776,3656.2,3656.1,22.46194755]
[1733204781240,14.60246558,3656.2,3656.1,22.36129088]
[1733204781440,14.60246558,3656.2,3656.1,22.46194755]
[1733204783477,11.73960776,3656.2,3656.1,22.46194755]
[1733204784645,11.74092058,3656.2,3656.1,22.46194755]
[1733204784845,12.71226738,3656.2,3656.1,22.46194755]
[1733204785070,11.74092058,3656.2,3656.1,22.46194755]
[1733204785241,11.74092058,3656.2,3656.1,21.84582963]
[1733204785647,10.64524304,3656.2,3656.1,21.84582963]
[1733204785847,10.47411785,3656.2,3656.1,21.84582963]
[1733204786156,11.44601921,3656.2,3656.1,21.84582963]
[1733204786375,8.58105415,3656.2,3656.1,21.84582963]
[1733204786690,10.47411785,3656.2,3656.1,21.84582963]
[1733204789280,10.47411785,3656.2,3656.1,21.74517296]
[1733204789490,13.91145247,3656.2,3656.1,21.8459538]
[1733204789795,13.92040577,3656.2,3656.1,21.8459538]
[1733204791553,10.4777704,3656.2,3656.1,21.8459538]
[1733204791752,10.47853382,3656.2,3656.1,21.8459538]
[1733204792175,13.92227501,3656.2,3656.1,21.8459538]
[1733204792385,10.47853382,3656.2,3656.1,21.8459538]
[1733204793090,13.92256678,3656.2,3656.1,21.8459538]
[1733204795299,12.88816062,3656.2,3656.1,21.8459538]
[1733204795507,10.38492799,3656.2,3656.1,21.8459538]
[1733204796104,8.60980307,3656.2,3656.1,21.74517296]
[1733204796468,7.94355541,3656.2,3656.1,21.84612932]
[1733204796713,8.35381101,3656.2,3656.1,21.84612932]
[1733204796932,8.61022076,3656.2,3656.1,21.84612932]
[1733204797379,7.94355541,3656.2,3656.1,21.84612932]
[1733204797572,8.6105315,3656.2,3656.1,21.84612932]
[1733204797985,8.6105315,3656.2,3656.1,20.84944292]
[1733204798971,4.93378831,3656.2,3656.1,21.64304292]
[1733204799197,4.40970115,3656.2,3656.1,23.80734721]
[1733204799397,5.70492201,3656.2,3656.1,23.80734721]
[1733204799711,3.9823878,3656.2,3656.1,23.80734721]
[1733204799915,3.04072461,3656.2,3656.1,24.35734721]
[1733204800378,3.9823878,3656.2,3656.1,24.35734721]
[1733204800579,4.18861746,3656.2,3656.1,24.35734721]
[1733204800784,1.20603368,3656.2,3656.1,27.09249721]
[1733204800990,0.25640409,3656.2,3656.1,27.09249721]
[1733204801309,0.25640409,3656.3,3656.2,0.55]
[1733204801605,1.20511015,3656.3,3656.2,4.08954358]
[1733204802921,0.25599454,3656.3,3656.2,4.08954358]
[1733204803215,1.55813939,3656.7,3656.5,0.8177]
[1733204803402,2.6641974,3656.9,3656.2,2.73024358]
[1733204803403,2.57054544,3656.8,3656.7,1.3677]
[1733204803586,1.20374008,3656.8,3656.7,1.3677]
[1733204803785,1.20374008,3656.8,3656.7,0.91764842]
[1733204804315,2.35163293,3656.8,3656.7,0.91764842]
[1733204804476,1.20374008,3656.8,3656.7,0.91764842]
[1733204805608,0.25576032,3656.8,3656.7,0.91764842]
[1733204805812,1.20313594,3656.8,3656.7,0.91764842]
[1733204806322,0.25576032,3656.8,3656.7,0.91764842]
[1733204806685,0.25576032,3656.8,3656.7,1.46764842]
[1733204806879,0.25576032,3656.9,3656.8,0.8305]
[1733204807179,0.25576032,3656.9,3656.8,0.55]
[1733204807496,0.94166319,3657.0,3656.8,0.55]
[1733204807497,1.19742351,3657.0,3656.9,1.3805]
[1733204807696,0.94166319,3657.0,3656.9,1.48021526]
[1733204808606,0.94166319,3657.0,3656.9,1.3805]
[1733204808802,0.94166319,3657.0,3656.9,1.48021526]
[1733204812037,0.94166319,3657.0,3656.9,0.93021526]
[1733204812832,0.94166319,3657.0,3656.9,0.8305]
[1733204813994,0.94166319,3657.0,3656.9,0.92970609]
[1733204814394,0.94166319,3657.0,3656.9,0.8305]
[1733204814699,0.94166319,3657.0,3656.9,0.92970609]
[1733204820538,0.94166319,3657.0,3656.9,0.8305]
[1733204820742,0.94166319,3657.0,3656.9,0.92970609]
[1733204821033,0.94166319,3657.0,3656.9,1.47970609]
[1733204824327,0.94166319,3657.0,3656.9,1.9011467]
[1733204824528,1.1971907,3657.6,3657.0,0.55]
[1733204824746,1.1971907,3657.6,3657.2,0.55]
[1733204824747,0.25552751,3657.5,3657.2,0.55]
[1733204824965,0.25550701,3657.5,3657.4,1.3632]
[1733204825124,0.25550701,3657.8,3657.4,1.3632]
[1733204825460,0.25550701,3657.7,3657.6,0.55]
[1733204825628,2.73359,3658.2,3657.6,0.55]
[1733204825629,0.25550701,3658.1,3657.6,0.64859342]
[1733204825823,0.25550701,3658.0,3657.6,0.55]
[1733204826024,0.94166319,3657.7,3657.5,0.55]
[1733204826271,0.25550701,3657.6,3657.5,0.55]
[1733204826479,0.94166319,3657.7,3657.5,0.09863512]
[1733204826646,0.94166319,3657.7,3657.6,0.55]
[1733204826849,0.94166319,3657.7,3657.6,0.64859342]
[1733204827367,1.1971702,3657.7,3657.6,0.64859342]
[1733204827732,0.94166319,3657.7,3657.6,0.64859342]
[1733204828134,1.1971702,3657.7,3657.6,0.09859342]
[1733204828381,2.23323339,3657.7,3657.0,0.8132]
[1733204828563,0.94166319,3657.1,3657.0,0.8132]
[1733204828931,0.94166319,3657.1,3656.4,0.7663]
[1733204828932,1.1971702,3657.1,3656.4,0.7663]
[1733204829264,0.94166319,3656.8,3656.4,3.45426163]
[1733204829436,0.94166319,3656.5,3656.4,0.7663]
[1733204830373,0.0944,3657.1,3656.4,0.7663]
[1733204830374,0.25584233,3656.7,3656.4,0.7663]
[1733204830676,0.94166319,3657.2,3656.7,2.73466]
[1733204830881,0.25588056,3657.0,3656.9,1.381]
[1733204831081,0.94166319,3657.2,3657.0,0.55]
[1733204831378,0.94166319,3657.2,3657.0,0.961566]
[1733204831554,0.25587849,3657.1,3657.0,0.55]
[1733204831754,0.94166319,3657.2,3657.0,0.55]
[1733204831936,0.4094089,3657.9,3657.0,0.55]
[1733204831937,0.94166319,3657.5,3657.1,1.3121]
[1733204832141,0.25587471,3657.4,3657.3,2.73425]
[1733204832365,0.25587471,3657.4,3657.3,1.3806]
[1733204832536,0.25587471,3657.7,3657.4,0.55]
[1733204832737,0.25587471,3657.6,3657.5,0.64861801]
[1733204833197,0.25587471,3657.6,3657.5,0.09861801]
[1733204833360,1.35823258,3657.6,3657.5,0.09861801]
[1733204833541,0.82597829,3657.6,3657.2,0.55]
[1733204833749,0.94166319,3657.3,3657.2,0.55]
[1733204833982,1.1975379,3657.3,3657.2,0.55]
[1733204834886,1.19753395,3657.3,3657.2,0.55]
[1733204835570,0.25587076,3657.3,3657.2,4.10253]
[1733204835973,2.82777,3658.5,3657.2,0.55]
[1733204835974,0.25587076,3657.5,3657.2,0.55]
[1733204836161,0.2558466,3657.8,3657.7,0.55]
[1733204839106,0.2558466,3657.8,3657.7,0.64822245]
[1733204839463,0.2558466,3657.8,3657.7,0.09822245]
[1733204840565,0.94166319,3657.9,3657.7,0.09822245]
[1733204843980,0.25562148,3658.2,3657.9,2.73374]
[1733204844173,0.25562148,3658.1,3658.0,3.51121]
[1733204844371,0.25562148,3658.1,3658.0,6.60930738]
[1733204844715,0.25562148,3658.3,3658.1,2.73363]
[1733204844866,0.94166319,3658.2,3658.0,0.12543164]
[1733204845064,0.94166319,3658.2,3658.0,0.09809738]
[1733204845500,0.94166319,3658.2,3657.7,0.7775]
[1733204845501,1.19728467,3658.2,3657.7,0.7775]
[1733204845716,0.0944,3658.5,3658.1,0.0980557]
[1733204845893,0.25552968,3658.4,3657.7,3.7775]
[1733204846096,0.94166319,3657.9,3657.7,4.428652]
[1733204846599,0.94166319,3657.9,3657.7,1.428652]
[1733204847523,0.94166319,3657.9,3657.7,0.7775]
[1733204847815,0.94166319,3657.9,3657.8,0.09800976]
[1733204847976,0.94166319,3658.2,3657.8,0.09800976]
[1733204848179,0.94166319,3658.2,3657.7,3.7775]
[1733204848180,1.19719287,3658.2,3657.7,3.7775]
[1733204848493,0.94166319,3658.2,3657.8,0.09800976]
[1733204848679,0.94166319,3658.2,3657.7,6.51142]
[1733204849017,1.19719287,3658.2,3657.9,0.09796807]
[1733204849313,0.94166319,3658.2,3657.9,0.09796807]
[1733204849927,1.03606319,3658.2,3657.9,0.09796807]
[1733204850110,0.25552968,3658.1,3657.5,0.7937]
[1733204850309,1.03606319,3658.2,3657.5,0.7937]
[1733204850310,0.94166319,3657.8,3657.5,0.7937]
[1733204850500,0.94166319,3657.8,3657.6,0.09809315]
[1733204853392,3.93123955,3657.8,3657.6,0.09809315]
[1733204853699,5.70963914,3658.3,3657.6,3.50563]
[1733204853700,0.25569636,3657.7,3657.6,3.50563]
[1733204853911,0.4091031,3658.6,3658.2,0.7716]
[1733204854111,0.25568428,3658.5,3658.2,3.50518]
[1733204854315,0.25568428,3658.4,3658.3,2.83100635]
[1733204854552,0.25568428,3658.6,3658.3,0.45776699]
[1733204854836,0.25568428,3658.5,3658.4,2.73341]
[1733204855135,0.94166319,3658.8,3658.4,0.09746467]
[1733204856303,0.94166319,3658.8,3658.3,2.73347]
[1733204856509,0.94166319,3658.8,3658.6,0.7857]
[1733204856909,0.94166319,3658.8,3658.7,0.09709605]
[1733204860015,0.25555173,3659.2,3658.7,0.09709605]
[1733204860213,0.25555173,3659.1,3658.8,0.7877]
[1733204860416,0.25555173,3659.4,3658.8,0.7877]
[1733204860745,0.25555173,3659.3,3658.5,0.7877]
[1733204860951,0.25555173,3659.2,3658.9,0.09668795]
[1733204861102,0.25555173,3659.1,3658.5,0.7877]
[1733204861303,0.94166319,3658.7,3658.5,0.7877]
[1733204862716,0.94166319,3658.7,3658.6,0.09681296]
[1733204863543,0.94166319,3658.7,3658.6,0.09680868]
[1733204863769,0.94166319,3658.7,3658.3,0.805]
[1733204863919,0.94166319,3658.4,3658.3,0.805]
[1733204866450,0.94166319,3658.4,3658.0,0.7628]
[1733204866649,0.94166319,3658.1,3658.0,0.7628]
[1733204866804,0.94166319,3658.1,3657.6,3.014117]
[1733204867004,0.94166319,3658.8,3657.6,3.014117]
[1733204867005,0.94166319,3657.8,3657.7,0.7628]
[1733204867302,0.94166319,3657.8,3657.6,0.014117]
[1733204869043,0.94166319,3657.7,3657.6,0.014117]
[1733204869247,3.93123827,3657.8,3657.6,0.014117]
[1733204869549,1.59989658,3657.7,3657.6,0.014117]
[1733204870051,0.65823339,3657.7,3657.6,0.014117]
[1733204870743,1.59989658,3657.7,3657.6,0.014117]
[1733204870949,0.65823339,3657.7,3657.6,0.014117]
[1733204871117,1.59989658,3657.7,3657.6,0.014117]
[1733204871640,5.43012952,3657.7,3657.6,0.014117]
[1733204875753,5.52452952,3657.7,3657.6,0.014117]
[1733204876244,6.47072749,3657.7,3657.6,0.014117]
[1733204876467,8.29920083,3657.7,3657.6,0.014117]
[1733204876743,9.44729137,3657.7,3657.6,0.014117]
[1733204879104,8.29939852,3657.7,3657.6,0.014117]
[1733204879947,6.87981739,3657.7,3657.6,0.014117]
[1733204880347,8.29925311,3657.7,3657.6,0.014117]
[1733204880548,9.44628666,3657.7,3657.6,0.014117]
[1733204880848,7.08046352,3657.7,3657.6,0.014117]
[1733204881048,9.44636447,3657.7,3657.6,0.014117]
[1733204881251,8.29847162,3657.7,3657.6,0.014117]
[1733204881474,6.87893105,3657.7,3657.6,0.014117]
[1733204881781,8.29838694,3657.7,3657.6,0.014117]
[1733204881983,6.26044081,3657.7,3657.6,0.014117]
[1733204882148,4.05058105,3657.7,3657.6,0.014117]
[1733204882346,2.69578331,3657.7,3657.6,0.014117]
[1733204882746,5.42973331,3657.7,3657.6,0.014117]
[1733204882989,5.4296318,3657.7,3657.6,0.014117]
[1733204883285,5.83790675,3657.7,3657.6,0.014117]
[1733204883500,5.83786592,3657.7,3657.6,0.014117]
[1733204884202,0.25517184,3657.7,3657.6,0.014117]
[1733204884401,0.2551054,3658.0,3657.6,0.014117]
[1733204884556,0.2551054,3658.0,3657.6,0.11274035]
[1733204884903,0.2551054,3658.0,3657.6,0.014117]
[1733204885064,2.29305153,3658.1,3657.6,0.014117]
[1733204885263,0.2551054,3658.0,3657.6,0.014117]
[1733204885483,0.2551054,3657.9,3657.6,0.014117]
[1733204885686,2.03794613,3658.1,3657.6,0.014117]
[1733204885687,0.2551054,3658.0,3657.6,0.014117]
[1733204886262,2.03794613,3657.7,3657.6,0.014117]
[1733204886690,2.03794613,3657.7,3657.6,0.11274035]
[1733204887011,2.54063873,3657.7,3657.6,0.014117]
[1733204887190,5.02706603,3657.7,3657.6,0.014117]
[1733204889265,2.29311603,3657.7,3657.6,0.014117]
[1733204889772,0.2551699,3657.7,3657.6,0.815717]
[1733204889989,2.29311603,3657.7,3657.6,0.815717]
[1733204890202,2.29311603,3657.7,3657.6,0.014117]
[1733204890502,2.03794613,3657.7,3657.6,0.014117]
[1733204890701,2.29311603,3657.7,3657.6,0.11255221]
[1733204890875,2.29332272,3657.7,3657.6,0.11255221]
[1733204891386,5.52997899,3657.7,3657.6,0.11255221]
[1733204891788,6.47586652,3657.7,3657.6,0.014117]
[1733204892113,8.30331289,3657.7,3657.6,0.014117]
[1733204892306,9.45120574,3657.7,3657.6,0.014117]
[1733204892664,8.30331289,3657.7,3657.6,0.014117]
[1733204893207,9.45120574,3657.7,3657.6,0.014117]
[1733204893366,8.30331289,3657.7,3657.6,0.014117]
[1733204894503,6.88446907,3657.7,3657.6,0.014117]
[1733204894666,9.45084336,3657.7,3657.6,0.014117]
[1733204895063,7.45084336,3657.7,3657.6,0.014117]
[1733204895810,6.30295051,3657.7,3657.6,0.014117]
[1733204896108,7.45084336,3657.7,3657.6,0.014117]
[1733204896405,8.04750237,3657.7,3657.6,0.014117]
[1733204897118,6.90221194,3657.7,3657.6,0.014117]
[1733204897402,0.83660568,3657.7,3657.6,0.784617]
[1733204897578,0.66555043,3657.7,3657.6,0.784617]
[1733204897780,0.66555043,3657.7,3657.6,0.88327028]
[1733204898303,0.66555043,3657.7,3657.6,0.784617]
[1733204898674,0.66555043,3657.7,3657.6,0.88327028]
[1733204898675,0.6425919,3657.7,3657.6,0.88327028]
[1733204899407,0.6425919,3657.7,3657.6,0.784617]
[1733204899560,0.6425919,3657.7,3657.6,0.88327028]
[1733204900265,0.2330224,3657.7,3657.6,1.24502231]
[1733204900470,2.03794613,3658.2,3657.6,0.88327028]
[1733204900783,0.40965688,3658.1,3657.6,0.88327028]
[1733204901002,0.40965688,3658.0,3657.6,0.88327028]
[1733204901203,0.40965688,3657.9,3657.6,0.784617]
[1733204901407,2.03794613,3658.2,3657.6,0.784617]
[1733204901706,2.03794613,3657.8,3657.7,0.09840205]
[1733204901889,2.4475636,3657.8,3657.7,0.09840205]
[1733204902767,2.4475636,3657.8,3657.6,0.014117]
[1733204903001,0.40961747,3657.7,3657.6,0.014117]
[1733204903566,3.14356747,3657.7,3657.6,0.014117]
[1733204903767,0.92776883,3657.7,3657.6,0.014117]
[1733204904062,0.40961747,3657.7,3657.6,0.014117]
[1733204904287,3.14356747,3657.7,3657.6,0.014117]
[1733204904503,3.23796747,3657.7,3657.6,0.014117]
[1733204904805,4.35505791,3657.7,3657.6,0.014117]
[1733204904994,6.92210009,3657.7,3657.6,0.014117]
[1733204905191,8.30640472,3657.7,3657.6,0.014117]
[1733204905392,7.58523778,3657.7,3657.6,0.014117]
[1733204905711,8.72967618,3657.7,3657.6,0.014117]
[1733204905894,8.30295027,3657.7,3657.6,0.014117]
[1733204906509,8.30373149,3657.7,3657.6,0.014117]
[1733204907407,7.15904473,3657.7,3657.6,0.014117]
[1733204907710,8.30403714,3657.7,3657.6,0.014117]
[1733204908502,2.9463901,3657.7,3657.6,0.014117]
[1733204908712,2.77537862,3657.7,3657.6,0.014117]
[1733204908864,1.35592193,3657.7,3657.6,0.014117]
[1733204909070,2.77639488,3657.7,3657.6,0.014117]
[1733204909620,3.92138729,3657.7,3657.6,0.11267192]
[1733204909831,3.92138729,3657.7,3657.6,0.014117]
[1733204910001,5.23486434,3657.7,3657.6,0.014117]
[1733204910321,7.40389057,3657.7,3657.6,0.014117]
[1733204910520,5.51034488,3657.7,3657.6,0.014117]
[1733204910723,7.45726091,3657.7,3657.6,0.014117]
[1733204910939,10.18077292,3657.7,3657.6,0.014117]
[1733204911127,8.51515351,3657.7,3657.6,0.014117]
[1733204911321,11.6487308,3657.7,3657.6,0.014117]
[1733204911527,10.65675057,3657.7,3657.6,0.014117]
[1733204911727,9.78201927,3657.7,3657.6,0.014117]
[1733204912222,7.41192794,3657.7,3657.6,0.014117]
[1733204912428,9.78201824,3657.7,3657.6,0.014117]
[1733204912789,9.35525759,3657.7,3657.6,0.014117]
[1733204913097,7.41192794,3657.7,3657.6,0.014117]
[1733204913287,6.98516729,3657.7,3657.6,0.014117]
[1733204913702,7.41192794,3657.7,3657.6,0.014117]
[1733204914019,3.15812999,3657.7,3657.6,0.800417]
[1733204914227,2.56032476,3657.7,3657.6,0.800417]
[1733204914524,2.15063454,3657.7,3657.6,0.800417]